{"text_format":"1","workbook":"xlsx","n_sheets":11,"sheets":["Dataset","Delete Manually","Go To Special","Filter Option","Sort Feature","Find Option","Advanced Filter","FILTER Function","PowerQuery","VBA Code","Delete Blanks with Formula"],"not_rendered":{"charts":0,"images":0,"macros":1,"external_links":0,"defined_names":8,"comments":0,"pivot_tables":0},"unopened":[],"bounds":{"document_bytes":16777216,"sheet_cells":100000,"rows_first":2000,"rows_last":500,"rows_between":2000,"halvings":0,"cell_chars":16384,"cell_head_chars":4096},"cells_cut":0,"cells_raw":0,"read":"whole","date_system":"1900"}

{"sheet":"Dataset","index":0,"n_rows":16,"n_cols":5,"rows_kept":16,"cut":false,"hidden":false,"merged":[[1,1,1,4]]}
[]
[null,"List of Best Selling Books"]
[]
[null,"Name ",null,"Author","ISBN "]
[null,"The Grass is Always Greener",null,"Jeffrey Archer","1-86092-049-7"]
[null,"Murder!",null,"Arnold Bennett ","1-86092-012-8"]
[]
[null,"Fear and Loathing in Aspen",null,"John Bidwell","1-86092-022-5"]
[]
[null,"The Higgler",null,"A. E. Coppard ","1-86092-010-1"]
[null,"A Mere Interlude",null,"Thomas Hardy ","1-86092-045-4"]
[]
[null,"Irish Revel",null,"Edna O'Brien","1-86092-036-5"]
[]
[null,"The Signalman",null,"Charles Dickens ","1-86092-038-1"]
[null,"The Five Orange Pips",null,"Arthur Conan Doyle","1-86092-031-4"]

{"sheet":"Delete Manually","index":1,"n_rows":16,"n_cols":15,"rows_kept":16,"cut":false,"hidden":false,"merged":[[1,1,1,3],[1,11,1,14]]}
[]
[null,"Deleting Blank Cells Manually ",null,null,null,null,null,null,null,null,null,"Do Yourself"]
[]
[null,"Name ","Author","ISBN ",null,null,null,null,null,null,null,"Name ",null,"Author","ISBN "]
[null,"The Grass is Always Greener","Jeffrey Archer","1-86092-049-7",null,null,null,null,null,null,null,"The Grass is Always Greener",null,"Jeffrey Archer","1-86092-049-7"]
[null,"Murder!","Arnold Bennett ","1-86092-012-8",null,null,null,null,null,null,null,"Murder!",null,"Arnold Bennett ","1-86092-012-8"]
[null,"Fear and Loathing in Aspen","John Bidwell","1-86092-022-5"]
[null,"The Higgler","A. E. Coppard ","1-86092-010-1",null,null,null,null,null,null,null,"Fear and Loathing in Aspen",null,"John Bidwell","1-86092-022-5"]
[null,"A Mere Interlude","Thomas Hardy ","1-86092-045-4"]
[null,"Irish Revel","Edna O'Brien","1-86092-036-5",null,null,null,null,null,null,null,"The Higgler",null,"A. E. Coppard ","1-86092-010-1"]
[null,"The Signalman","Charles Dickens ","1-86092-038-1",null,null,null,null,null,null,null,"A Mere Interlude",null,"Thomas Hardy ","1-86092-045-4"]
[null,"The Five Orange Pips","Arthur Conan Doyle","1-86092-031-4"]
[null,null,null,null,null,null,null,null,null,null,null,"Irish Revel",null,"Edna O'Brien","1-86092-036-5"]
[]
[null,null,null,null,null,null,null,null,null,null,null,"The Signalman",null,"Charles Dickens ","1-86092-038-1"]
[null,null,null,null,null,null,null,null,null,null,null,"The Five Orange Pips",null,"Arthur Conan Doyle","1-86092-031-4"]

{"sheet":"Go To Special","index":2,"n_rows":16,"n_cols":15,"rows_kept":16,"cut":false,"hidden":false,"merged":[[1,1,1,3],[1,11,1,14]]}
[]
[null,"Using Go To Special Command",null,null,null,null,null,null,null,null,null,"Do Yourself"]
[]
[null,"Name ","Author","ISBN ",null,null,null,null,null,null,null,"Name ",null,"Author","ISBN "]
[null,"The Grass is Always Greener","Jeffrey Archer","1-86092-049-7",null,null,null,null,null,null,null,"The Grass is Always Greener",null,"Jeffrey Archer","1-86092-049-7"]
[null,"Murder!","Arnold Bennett ","1-86092-012-8",null,null,null,null,null,null,null,"Murder!",null,"Arnold Bennett ","1-86092-012-8"]
[null,"Fear and Loathing in Aspen","John Bidwell","1-86092-022-5"]
[null,"The Higgler","A. E. Coppard ","1-86092-010-1",null,null,null,null,null,null,null,"Fear and Loathing in Aspen",null,"John Bidwell","1-86092-022-5"]
[null,"A Mere Interlude","Thomas Hardy ","1-86092-045-4"]
[null,"Irish Revel","Edna O'Brien","1-86092-036-5",null,null,null,null,null,null,null,"The Higgler",null,"A. E. Coppard ","1-86092-010-1"]
[null,"The Signalman","Charles Dickens ","1-86092-038-1",null,null,null,null,null,null,null,"A Mere Interlude",null,"Thomas Hardy ","1-86092-045-4"]
[null,"The Five Orange Pips","Arthur Conan Doyle","1-86092-031-4"]
[null,null,null,null,null,null,null,null,null,null,null,"Irish Revel",null,"Edna O'Brien","1-86092-036-5"]
[]
[null,null,null,null,null,null,null,null,null,null,null,"The Signalman",null,"Charles Dickens ","1-86092-038-1"]
[null,null,null,null,null,null,null,null,null,null,null,"The Five Orange Pips",null,"Arthur Conan Doyle","1-86092-031-4"]

{"sheet":"Filter Option","index":3,"n_rows":16,"n_cols":15,"rows_kept":16,"cut":false,"hidden":false,"merged":[[1,1,1,3],[1,11,1,14]]}
[]
[null,"Utilizing Filter Option ",null,null,null,null,null,null,null,null,null,"Do Yourself"]
[]
[null,"Name ","Author","ISBN ",null,null,null,null,null,null,null,"Name ",null,"Author","ISBN "]
[null,"The Grass is Always Greener","Jeffrey Archer","1-86092-049-7",null,null,null,null,null,null,null,"The Grass is Always Greener",null,"Jeffrey Archer","1-86092-049-7"]
[null,"Murder!","Arnold Bennett ","1-86092-012-8",null,null,null,null,null,null,null,"Murder!",null,"Arnold Bennett ","1-86092-012-8"]
[null,"Fear and Loathing in Aspen","John Bidwell","1-86092-022-5"]
[null,"The Higgler","A. E. Coppard ","1-86092-010-1",null,null,null,null,null,null,null,"Fear and Loathing in Aspen",null,"John Bidwell","1-86092-022-5"]
[null,"A Mere Interlude","Thomas Hardy ","1-86092-045-4"]
[null,"Irish Revel","Edna O'Brien","1-86092-036-5",null,null,null,null,null,null,null,"The Higgler",null,"A. E. Coppard ","1-86092-010-1"]
[null,"The Signalman","Charles Dickens ","1-86092-038-1",null,null,null,null,null,null,null,"A Mere Interlude",null,"Thomas Hardy ","1-86092-045-4"]
[null,"The Five Orange Pips","Arthur Conan Doyle","1-86092-031-4"]
[null,null,null,null,null,null,null,null,null,null,null,"Irish Revel",null,"Edna O'Brien","1-86092-036-5"]
[]
[null,null,null,null,null,null,null,null,null,null,null,"The Signalman",null,"Charles Dickens ","1-86092-038-1"]
[null,null,null,null,null,null,null,null,null,null,null,"The Five Orange Pips",null,"Arthur Conan Doyle","1-86092-031-4"]

{"sheet":"Sort Feature","index":4,"n_rows":16,"n_cols":15,"rows_kept":16,"cut":false,"hidden":false,"merged":[[1,1,1,3],[1,11,1,14]]}
[]
[null,"Applying Sort Feature ",null,null,null,null,null,null,null,null,null,"Do Yourself"]
[]
[null,"Name ","Author","ISBN ",null,null,null,null,null,null,null,"Name ",null,"Author","ISBN "]
[null,"A Mere Interlude","Thomas Hardy ","1-86092-045-4",null,null,null,null,null,null,null,"The Grass is Always Greener",null,"Jeffrey Archer","1-86092-049-7"]
[null,"Fear and Loathing in Aspen","John Bidwell","1-86092-022-5",null,null,null,null,null,null,null,"Murder!",null,"Arnold Bennett ","1-86092-012-8"]
[null,"Irish Revel","Edna O'Brien","1-86092-036-5"]
[null,"Murder!","Arnold Bennett ","1-86092-012-8",null,null,null,null,null,null,null,"Fear and Loathing in Aspen",null,"John Bidwell","1-86092-022-5"]
[null,"The Five Orange Pips","Arthur Conan Doyle","1-86092-031-4"]
[null,"The Grass is Always Greener","Jeffrey Archer","1-86092-049-7",null,null,null,null,null,null,null,"The Higgler",null,"A. E. Coppard ","1-86092-010-1"]
[null,"The Higgler","A. E. Coppard ","1-86092-010-1",null,null,null,null,null,null,null,"A Mere Interlude",null,"Thomas Hardy ","1-86092-045-4"]
[null,"The Signalman","Charles Dickens ","1-86092-038-1"]
[null,null,null,null,null,null,null,null,null,null,null,"Irish Revel",null,"Edna O'Brien","1-86092-036-5"]
[]
[null,null,null,null,null,null,null,null,null,null,null,"The Signalman",null,"Charles Dickens ","1-86092-038-1"]
[null,null,null,null,null,null,null,null,null,null,null,"The Five Orange Pips",null,"Arthur Conan Doyle","1-86092-031-4"]

{"sheet":"Find Option","index":5,"n_rows":16,"n_cols":14,"rows_kept":16,"cut":false,"hidden":false,"merged":[[1,1,1,3],[1,11,1,13]]}
[]
[null,"Employing Find Option",null,null,null,null,null,null,null,null,null,"Do Yourself"]
[]
[null,"Name ","Author","ISBN ",null,null,null,null,null,null,null,"Name ","Author","ISBN "]
[null,"The Grass is Always Greener","Jeffrey Archer","1-86092-049-7",null,null,null,null,null,null,null,"The Grass is Always Greener","Jeffrey Archer","1-86092-049-7"]
[null,"Murder!","Arnold Bennett ","1-86092-012-8",null,null,null,null,null,null,null,"Murder!","Arnold Bennett ","1-86092-012-8"]
[null,"Fear and Loathing in Aspen","John Bidwell","1-86092-022-5"]
[null,"The Higgler","A. E. Coppard ","1-86092-010-1",null,null,null,null,null,null,null,"Fear and Loathing in Aspen","John Bidwell","1-86092-022-5"]
[null,"A Mere Interlude","Thomas Hardy ","1-86092-045-4"]
[null,"Irish Revel","Edna O'Brien","1-86092-036-5",null,null,null,null,null,null,null,"The Higgler","A. E. Coppard ","1-86092-010-1"]
[null,"The Signalman","Charles Dickens ","1-86092-038-1",null,null,null,null,null,null,null,"A Mere Interlude","Thomas Hardy ","1-86092-045-4"]
[null,"The Five Orange Pips","Arthur Conan Doyle","1-86092-031-4"]
[null,null,null,null,null,null,null,null,null,null,null,"Irish Revel","Edna O'Brien","1-86092-036-5"]
[]
[null,null,null,null,null,null,null,null,null,null,null,"The Signalman","Charles Dickens ","1-86092-038-1"]
[null,null,null,null,null,null,null,null,null,null,null,"The Five Orange Pips","Arthur Conan Doyle","1-86092-031-4"]

{"sheet":"Advanced Filter","index":6,"n_rows":16,"n_cols":17,"rows_kept":16,"cut":false,"hidden":false,"merged":[[1,1,1,3],[1,5,1,7],[1,14,1,16]]}
[]
[null,"Dataset with Blank Cells",null,null,null,"Incorporating Advanced Filter",null,null,null,null,null,null,null,null,"Do Yourself"]
[]
[null,"Name ","Author","ISBN ",null,"Name ","Author","ISBN ",null,null,null,null,null,null,"Name ","Author","ISBN "]
[null,"The Grass is Always Greener","Jeffrey Archer","1-86092-049-7",null,"The Grass is Always Greener","Jeffrey Archer","1-86092-049-7",null,null,null,null,null,null,"The Grass is Always Greener","Jeffrey Archer","1-86092-049-7"]
[null,"Murder!","Arnold Bennett ","1-86092-012-8",null,"Murder!","Arnold Bennett ","1-86092-012-8",null,null,null,null,null,null,"Murder!","Arnold Bennett ","1-86092-012-8"]
[null,null,null,null,null,"Fear and Loathing in Aspen","John Bidwell","1-86092-022-5"]
[null,"Fear and Loathing in Aspen","John Bidwell","1-86092-022-5",null,"The Higgler","A. E. Coppard ","1-86092-010-1",null,null,null,null,null,null,"Fear and Loathing in Aspen","John Bidwell","1-86092-022-5"]
[null,null,null,null,null,"A Mere Interlude","Thomas Hardy ","1-86092-045-4"]
[null,"The Higgler","A. E. Coppard ","1-86092-010-1",null,"Irish Revel","Edna O'Brien","1-86092-036-5",null,null,null,null,null,null,"The Higgler","A. E. Coppard ","1-86092-010-1"]
[null,"A Mere Interlude","Thomas Hardy ","1-86092-045-4",null,"The Signalman","Charles Dickens ","1-86092-038-1",null,null,null,null,null,null,"A Mere Interlude","Thomas Hardy ","1-86092-045-4"]
[null,null,null,null,null,"The Five Orange Pips","Arthur Conan Doyle","1-86092-031-4"]
[null,"Irish Revel","Edna O'Brien","1-86092-036-5",null,null,null,null,null,null,null,null,null,null,"Irish Revel","Edna O'Brien","1-86092-036-5"]
[]
[null,"The Signalman","Charles Dickens ","1-86092-038-1",null,null,null,null,null,null,null,null,null,null,"The Signalman","Charles Dickens ","1-86092-038-1"]
[null,"The Five Orange Pips","Arthur Conan Doyle","1-86092-031-4",null,null,null,null,null,null,null,null,null,null,"The Five Orange Pips","Arthur Conan Doyle","1-86092-031-4"]

{"sheet":"FILTER Function","index":7,"n_rows":16,"n_cols":17,"rows_kept":16,"cut":false,"hidden":false,"merged":[[1,1,1,3],[1,5,1,7],[1,14,1,16]]}
[]
[null,"Dataset with Blank Cells",null,null,null,"Using FILTER Function ",null,null,null,null,null,null,null,null,"Do Yourself"]
[]
[null,"Name ","Author","ISBN ",null,"Name ","Author","ISBN ",null,null,null,null,null,null,"Name ","Author","ISBN "]
[null,"The Grass is Always Greener","Jeffrey Archer","1-86092-049-7",null,{"$f":"_xlfn._xlws.FILTER(Best_Sellers[],Best_Sellers[[Name ]]<>\"\" )","v":"The Grass is Always Greener"},"Jeffrey Archer","1-86092-049-7",null,null,null,null,null,null,"The Grass is Always Greener","Jeffrey Archer","1-86092-049-7"]
[null,"Murder!","Arnold Bennett ","1-86092-012-8",null,"Murder!","Arnold Bennett ","1-86092-012-8",null,null,null,null,null,null,"Murder!","Arnold Bennett ","1-86092-012-8"]
[null,null,null,null,null,"Fear and Loathing in Aspen","John Bidwell","1-86092-022-5"]
[null,"Fear and Loathing in Aspen","John Bidwell","1-86092-022-5",null,"The Higgler","A. E. Coppard ","1-86092-010-1",null,null,null,null,null,null,"Fear and Loathing in Aspen","John Bidwell","1-86092-022-5"]
[null,null,null,null,null,"A Mere Interlude","Thomas Hardy ","1-86092-045-4"]
[null,"The Higgler","A. E. Coppard ","1-86092-010-1",null,"Irish Revel","Edna O'Brien","1-86092-036-5",null,null,null,null,null,null,"The Higgler","A. E. Coppard ","1-86092-010-1"]
[null,"A Mere Interlude","Thomas Hardy ","1-86092-045-4",null,"The Signalman","Charles Dickens ","1-86092-038-1",null,null,null,null,null,null,"A Mere Interlude","Thomas Hardy ","1-86092-045-4"]
[null,null,null,null,null,"The Five Orange Pips","Arthur Conan Doyle","1-86092-031-4"]
[null,"Irish Revel","Edna O'Brien","1-86092-036-5",null,null,null,null,null,null,null,null,null,null,"Irish Revel","Edna O'Brien","1-86092-036-5"]
[]
[null,"The Signalman","Charles Dickens ","1-86092-038-1",null,null,null,null,null,null,null,null,null,null,"The Signalman","Charles Dickens ","1-86092-038-1"]
[null,"The Five Orange Pips","Arthur Conan Doyle","1-86092-031-4",null,null,null,null,null,null,null,null,null,null,"The Five Orange Pips","Arthur Conan Doyle","1-86092-031-4"]

{"sheet":"PowerQuery","index":8,"n_rows":16,"n_cols":17,"rows_kept":16,"cut":false,"hidden":false,"merged":[[1,1,1,3],[1,5,1,7],[1,14,1,16]]}
[]
[null,"Dataset with Blank Cells",null,null,null,"Implementing PowerQuery Option",null,null,null,null,null,null,null,null,"Do Yourself"]
[]
[null,"Name ","Author","ISBN ",null,"Name ","Author","ISBN ",null,null,null,null,null,null,"Name ","Author","ISBN "]
[null,"The Grass is Always Greener","Jeffrey Archer","1-86092-049-7",null,"The Grass is Always Greener","Jeffrey Archer","1-86092-049-7",null,null,null,null,null,null,"The Grass is Always Greener","Jeffrey Archer","1-86092-049-7"]
[null,"Murder!","Arnold Bennett ","1-86092-012-8",null,"Murder!","Arnold Bennett ","1-86092-012-8",null,null,null,null,null,null,"Murder!","Arnold Bennett ","1-86092-012-8"]
[null,null,null,null,null,"Fear and Loathing in Aspen","John Bidwell","1-86092-022-5"]
[null,"Fear and Loathing in Aspen","John Bidwell","1-86092-022-5",null,"The Higgler","A. E. Coppard ","1-86092-010-1",null,null,null,null,null,null,"Fear and Loathing in Aspen","John Bidwell","1-86092-022-5"]
[null,null,null,null,null,"A Mere Interlude","Thomas Hardy ","1-86092-045-4"]
[null,"The Higgler","A. E. Coppard ","1-86092-010-1",null,"Irish Revel","Edna O'Brien","1-86092-036-5",null,null,null,null,null,null,"The Higgler","A. E. Coppard ","1-86092-010-1"]
[null,"A Mere Interlude","Thomas Hardy ","1-86092-045-4",null,"The Signalman","Charles Dickens ","1-86092-038-1",null,null,null,null,null,null,"A Mere Interlude","Thomas Hardy ","1-86092-045-4"]
[null,null,null,null,null,"The Five Orange Pips","Arthur Conan Doyle","1-86092-031-4"]
[null,"Irish Revel","Edna O'Brien","1-86092-036-5",null,null,null,null,null,null,null,null,null,null,"Irish Revel","Edna O'Brien","1-86092-036-5"]
[]
[null,"The Signalman","Charles Dickens ","1-86092-038-1",null,null,null,null,null,null,null,null,null,null,"The Signalman","Charles Dickens ","1-86092-038-1"]
[null,"The Five Orange Pips","Arthur Conan Doyle","1-86092-031-4",null,null,null,null,null,null,null,null,null,null,"The Five Orange Pips","Arthur Conan Doyle","1-86092-031-4"]

{"sheet":"VBA Code","index":9,"n_rows":16,"n_cols":14,"rows_kept":16,"cut":false,"hidden":false,"merged":[[1,1,1,3],[1,11,1,13]]}
[]
[null,"Applying VBA Code ",null,null,null,null,null,null,null,null,null,"Do Yourself"]
[]
[null,"Name ","Author","ISBN ",null,null,null,null,null,null,null,"Name ","Author","ISBN "]
[null,"The Grass is Always Greener","Jeffrey Archer","1-86092-049-7",null,null,null,null,null,null,null,"The Grass is Always Greener","Jeffrey Archer","1-86092-049-7"]
[null,"Murder!","Arnold Bennett ","1-86092-012-8",null,null,null,null,null,null,null,"Murder!","Arnold Bennett ","1-86092-012-8"]
[null,"Fear and Loathing in Aspen","John Bidwell","1-86092-022-5"]
[null,"The Higgler","A. E. Coppard ","1-86092-010-1",null,null,null,null,null,null,null,"Fear and Loathing in Aspen","John Bidwell","1-86092-022-5"]
[null,"A Mere Interlude","Thomas Hardy ","1-86092-045-4"]
[null,"Irish Revel","Edna O'Brien","1-86092-036-5",null,null,null,null,null,null,null,"The Higgler","A. E. Coppard ","1-86092-010-1"]
[null,"The Signalman","Charles Dickens ","1-86092-038-1",null,null,null,null,null,null,null,"A Mere Interlude","Thomas Hardy ","1-86092-045-4"]
[null,"The Five Orange Pips","Arthur Conan Doyle","1-86092-031-4"]
[null,null,null,null,null,null,null,null,null,null,null,"Irish Revel","Edna O'Brien","1-86092-036-5"]
[]
[null,null,null,null,null,null,null,null,null,null,null,"The Signalman","Charles Dickens ","1-86092-038-1"]
[null,null,null,null,null,null,null,null,null,null,null,"The Five Orange Pips","Arthur Conan Doyle","1-86092-031-4"]

{"sheet":"Delete Blanks with Formula","index":10,"n_rows":16,"n_cols":17,"rows_kept":16,"cut":false,"hidden":false,"merged":[[1,1,1,3],[1,5,1,7],[1,14,1,16]]}
[]
[null,"Dataset with Blank Cells",null,null,null,"Using Formula to Delete Blank Cells ",null,null,null,null,null,null,null,null,"Do Yourself"]
[]
[null,"Name ","Author","ISBN ",null,"Name ","Author","ISBN ",null,null,null,null,null,null,"Name ","Author","ISBN "]
[null,"The Grass is Always Greener","Jeffrey Archer","1-86092-049-7",null,{"$f":"IFERROR(INDEX(B:B,SMALL(IF(B$5:B$16<>\"\",ROW(B$5:B$16)), ROWS(B$5:B5))), \"\")","v":"The Grass is Always Greener"},{"$f":"IFERROR(INDEX(C:C,SMALL(IF(C$5:C$16<>\"\",ROW(C$5:C$16)), ROWS(C$5:C5))), \"\")","v":"Jeffrey Archer"},{"$f":"IFERROR(INDEX(D:D,SMALL(IF(D$5:D$16<>\"\",ROW(D$5:D$16)), ROWS(D$5:D5))), \"\")","v":"1-86092-049-7"},null,null,null,null,null,null,"The Grass is Always Greener","Jeffrey Archer","1-86092-049-7"]
[null,"Murder!","Arnold Bennett ","1-86092-012-8",null,{"$f":"IFERROR(INDEX(B:B,SMALL(IF(B$5:B$16<>\"\",ROW(B$5:B$16)), ROWS(B$5:B6))), \"\")","v":"Murder!"},{"$f":"IFERROR(INDEX(C:C,SMALL(IF(C$5:C$16<>\"\",ROW(C$5:C$16)), ROWS(C$5:C6))), \"\")","v":"Arnold Bennett "},{"$f":"IFERROR(INDEX(D:D,SMALL(IF(D$5:D$16<>\"\",ROW(D$5:D$16)), ROWS(D$5:D6))), \"\")","v":"1-86092-012-8"},null,null,null,null,null,null,"Murder!","Arnold Bennett ","1-86092-012-8"]
[null,null,null,null,null,{"$f":"IFERROR(INDEX(B:B,SMALL(IF(B$5:B$16<>\"\",ROW(B$5:B$16)), ROWS(B$5:B7))), \"\")","v":"Fear and Loathing in Aspen"},{"$f":"IFERROR(INDEX(C:C,SMALL(IF(C$5:C$16<>\"\",ROW(C$5:C$16)), ROWS(C$5:C7))), \"\")","v":"John Bidwell"},{"$f":"IFERROR(INDEX(D:D,SMALL(IF(D$5:D$16<>\"\",ROW(D$5:D$16)), ROWS(D$5:D7))), \"\")","v":"1-86092-022-5"}]
[null,"Fear and Loathing in Aspen","John Bidwell","1-86092-022-5",null,{"$f":"IFERROR(INDEX(B:B,SMALL(IF(B$5:B$16<>\"\",ROW(B$5:B$16)), ROWS(B$5:B8))), \"\")","v":"The Higgler"},{"$f":"IFERROR(INDEX(C:C,SMALL(IF(C$5:C$16<>\"\",ROW(C$5:C$16)), ROWS(C$5:C8))), \"\")","v":"A. E. Coppard "},{"$f":"IFERROR(INDEX(D:D,SMALL(IF(D$5:D$16<>\"\",ROW(D$5:D$16)), ROWS(D$5:D8))), \"\")","v":"1-86092-010-1"},null,null,null,null,null,null,"Fear and Loathing in Aspen","John Bidwell","1-86092-022-5"]
[null,null,null,null,null,{"$f":"IFERROR(INDEX(B:B,SMALL(IF(B$5:B$16<>\"\",ROW(B$5:B$16)), ROWS(B$5:B9))), \"\")","v":"A Mere Interlude"},{"$f":"IFERROR(INDEX(C:C,SMALL(IF(C$5:C$16<>\"\",ROW(C$5:C$16)), ROWS(C$5:C9))), \"\")","v":"Thomas Hardy "},{"$f":"IFERROR(INDEX(D:D,SMALL(IF(D$5:D$16<>\"\",ROW(D$5:D$16)), ROWS(D$5:D9))), \"\")","v":"1-86092-045-4"}]
[null,"The Higgler","A. E. Coppard ","1-86092-010-1",null,{"$f":"IFERROR(INDEX(B:B,SMALL(IF(B$5:B$16<>\"\",ROW(B$5:B$16)), ROWS(B$5:B10))), \"\")","v":"Irish Revel"},{"$f":"IFERROR(INDEX(C:C,SMALL(IF(C$5:C$16<>\"\",ROW(C$5:C$16)), ROWS(C$5:C10))), \"\")","v":"Edna O'Brien"},{"$f":"IFERROR(INDEX(D:D,SMALL(IF(D$5:D$16<>\"\",ROW(D$5:D$16)), ROWS(D$5:D10))), \"\")","v":"1-86092-036-5"},null,null,null,null,null,null,"The Higgler","A. E. Coppard ","1-86092-010-1"]
[null,"A Mere Interlude","Thomas Hardy ","1-86092-045-4",null,{"$f":"IFERROR(INDEX(B:B,SMALL(IF(B$5:B$16<>\"\",ROW(B$5:B$16)), ROWS(B$5:B11))), \"\")","v":"The Signalman"},{"$f":"IFERROR(INDEX(C:C,SMALL(IF(C$5:C$16<>\"\",ROW(C$5:C$16)), ROWS(C$5:C11))), \"\")","v":"Charles Dickens "},{"$f":"IFERROR(INDEX(D:D,SMALL(IF(D$5:D$16<>\"\",ROW(D$5:D$16)), ROWS(D$5:D11))), \"\")","v":"1-86092-038-1"},null,null,null,null,null,null,"A Mere Interlude","Thomas Hardy ","1-86092-045-4"]
[null,null,null,null,null,{"$f":"IFERROR(INDEX(B:B,SMALL(IF(B$5:B$16<>\"\",ROW(B$5:B$16)), ROWS(B$5:B12))), \"\")","v":"The Five Orange Pips"},{"$f":"IFERROR(INDEX(C:C,SMALL(IF(C$5:C$16<>\"\",ROW(C$5:C$16)), ROWS(C$5:C12))), \"\")","v":"Arthur Conan Doyle"},{"$f":"IFERROR(INDEX(D:D,SMALL(IF(D$5:D$16<>\"\",ROW(D$5:D$16)), ROWS(D$5:D12))), \"\")","v":"1-86092-031-4"}]
[null,"Irish Revel","Edna O'Brien","1-86092-036-5",null,null,null,null,null,null,null,null,null,null,"Irish Revel","Edna O'Brien","1-86092-036-5"]
[]
[null,"The Signalman","Charles Dickens ","1-86092-038-1",null,null,null,null,null,null,null,null,null,null,"The Signalman","Charles Dickens ","1-86092-038-1"]
[null,"The Five Orange Pips","Arthur Conan Doyle","1-86092-031-4",null,null,null,null,null,null,null,null,null,null,"The Five Orange Pips","Arthur Conan Doyle","1-86092-031-4"]